bitfinex/quotes_BTCUSD_20250512
["timestamp","ask_amount","ask_price","bid_price","bid_amount"]
[1747038079124,0.02875315,104330.0,104320.0,1.41883394]
[1747038079333,0.02875278,104330.0,104320.0,1.41883394]
[1747038079535,0.2012649,104340.0,104330.0,0.58732504]
[1747038079536,0.21084849,104340.0,104330.0,0.58732504]
[1747038079698,0.21084849,104340.0,104330.0,0.92013816]
[1747038080161,0.21084849,104340.0,104330.0,0.92972267]
[1747038080306,0.21084849,104340.0,104330.0,0.92013816]
[1747038080517,0.21084849,104340.0,104330.0,0.91055347]
[1747038080748,0.2012649,104340.0,104330.0,0.70926928]
[1747038080931,0.19168104,104340.0,104330.0,0.0315]
[1747038081183,0.19168104,104340.0,104330.0,0.0164]
[1747038081405,0.19168104,104340.0,104320.0,0.08300759]
[1747038081406,0.20128419,104330.0,104320.0,0.08300759]
[1747038082316,0.20128419,104330.0,104320.0,0.42273602]
[1747038082739,0.20128419,104330.0,104320.0,0.42373602]
[1747038082967,0.20128419,104330.0,104320.0,0.42573602]
[1747038085925,0.20128419,104330.0,104320.0,0.08600759]
[1747038086975,0.21628419,104330.0,104320.0,0.07010759]
[1747038088196,0.21632419,104330.0,104320.0,0.07010759]
[1747038090214,0.20132419,104330.0,104320.0,0.08640759]
[1747038090421,0.20132419,104330.0,104320.0,0.09275211]
[1747038090609,0.20132419,104330.0,104320.0,0.08640759]
[1747038094804,0.20132419,104330.0,104320.0,0.40963602]
[1747038095408,0.20132419,104330.0,104320.0,0.08640759]
[1747038096217,0.20132419,104330.0,104320.0,0.10150759]
[1747038098160,0.20132419,104330.0,104320.0,0.08640759]
[1747038099782,0.20132419,104330.0,104320.0,0.61715381]
[1747038099996,0.20132419,104330.0,104320.0,0.76543602]
[1747038102405,0.20132419,104330.0,104320.0,0.08640759]
[1747038102608,0.21772419,104330.0,104320.0,0.07010759]
[1747038103573,0.31357849,104330.0,104320.0,0.07010759]
[1747038104691,0.31357849,104330.0,104320.0,0.06810759]
[1747038105063,0.31357849,104330.0,104320.0,0.06710759]
[1747038105263,0.31357849,104330.0,104320.0,0.08360759]
[1747038105685,0.29717849,104330.0,104320.0,0.08360759]
[1747038110213,0.31237849,104330.0,104320.0,0.06710759]
[1747038111698,0.3370139,104330.0,104320.0,0.06710759]
[1747038111915,0.3212139,104330.0,104320.0,0.06710759]
[1747038112145,0.66696871,104330.0,104320.0,0.06710759]
[1747038112363,1.00696871,104330.0,104320.0,0.06710759]
[1747038112600,1.15282301,104330.0,104320.0,0.06710759]
[1747038112819,1.15782086,104330.0,104320.0,0.06710759]
[1747038113027,1.06196656,104330.0,104320.0,0.06710759]
[1747038114097,1.06296656,104330.0,104320.0,0.06710759]
[1747038114375,1.38750741,104330.0,104320.0,0.06710759]
[1747038114594,1.39920968,104330.0,104320.0,0.06710759]
[1747038114769,1.40020968,104330.0,104320.0,0.06710759]
[1747038115084,1.40320968,104330.0,104320.0,0.06710759]
[1747038117747,1.1435604,104330.0,104320.0,0.06710759]
[1747038117991,1.3308004,104330.0,104320.0,0.06710759]
[1747038118408,1.2808004,104330.0,104320.0,0.06710759]
[1747038118611,0.3495404,104330.0,104320.0,0.06710759]
[1747038118814,0.6249004,104330.0,104320.0,0.06710759]
[1747038119021,0.6895404,104330.0,104320.0,0.06710759]
[1747038119254,0.6239404,104330.0,104320.0,0.06710759]
[1747038119607,0.9639404,104330.0,104320.0,0.06710759]
[1747038120417,1.30316883,104330.0,104320.0,0.06710759]
[1747038120608,1.60316883,104330.0,104320.0,0.06710759]
[1747038120879,1.65316883,104330.0,104320.0,0.06710759]
[1747038121766,1.65316883,104330.0,104320.0,0.06698392]
[1747038121940,1.64716883,104330.0,104320.0,0.06698392]
[1747038122138,1.65216883,104330.0,104320.0,0.06698392]
[1747038122428,1.68170968,104330.0,104320.0,0.06698392]
[1747038122644,1.79079241,104330.0,104320.0,0.06698392]
[1747038123059,1.781957,104330.0,104320.0,0.06698392]
[1747038123266,1.36287427,104330.0,104320.0,0.06698392]
[1747038124581,1.09847427,104330.0,104320.0,0.06698392]
[1747038124762,1.67271427,104330.0,104320.0,0.06698392]
[1747038125355,1.68149747,104330.0,104320.0,0.06698392]
[1747038132841,1.37149747,104330.0,104320.0,0.06698392]
[1747038134296,1.6947259,104330.0,104320.0,0.06698392]
[1747038135762,1.6947259,104330.0,104320.0,0.05931255]
[1747038135991,0.60686364,104310.0,104300.0,0.06858058]
[1747038136286,1.31594637,104310.0,104300.0,0.06862955]
[1747038136565,1.77010637,104310.0,104300.0,0.06862955]
[1747038136761,1.72510622,104310.0,104300.0,0.06095818]
[1747038136985,1.8275869,104310.0,104300.0,0.06095818]
[1747038137200,1.8315869,104310.0,104300.0,0.06095818]
[1747038137419,1.7357326,104310.0,104300.0,0.06095818]
[1747038137641,1.7317326,104310.0,104300.0,0.06095818]
[1747038138106,1.7337326,104310.0,104300.0,0.06095818]
[1747038138328,1.7317326,104310.0,104300.0,0.06095818]
[1747038138994,0.57354209,104300.0,104290.0,0.06854339]
[1747038139217,0.57354209,104300.0,104290.0,0.06859237]
[1747038139218,1.06086554,104300.0,104290.0,0.06859237]
[1747038139466,1.31954554,104300.0,104290.0,0.06859237]
[1747038139719,1.32954554,104300.0,104290.0,0.06859237]
[1747038140202,1.33617192,104300.0,104290.0,0.06859237]
[1747038140409,1.06229192,104300.0,104290.0,0.06859237]
[1747038140577,1.33613192,104300.0,104290.0,0.06859237]
[1747038140788,1.33713192,104300.0,104290.0,0.06859237]
[1747038140999,1.33913192,104300.0,104290.0,0.06859237]
[1747038141859,1.28913192,104300.0,104290.0,0.06859237]
[1747038142067,1.28909192,104300.0,104290.0,0.06859237]
[1747038142539,1.01529192,104300.0,104290.0,0.06859237]
[1747038142744,1.28909192,104300.0,104290.0,0.06859237]
[1747038143147,1.01529192,104300.0,104290.0,0.06859237]
[1747038143385,1.28909192,104300.0,104290.0,0.06859237]
[1747038144455,0.94016349,104300.0,104290.0,0.08469237]
[1747038144672,1.24016349,104300.0,104290.0,0.08469237]
[1747038144900,1.23516362,104300.0,104290.0,0.08469237]
[1747038145749,1.55839205,104300.0,104290.0,0.08469237]
[1747038147122,1.55827205,104300.0,104290.0,0.08469237]
[1747038147836,1.65412635,104300.0,104290.0,0.08469237]
[1747038148062,1.55827205,104300.0,104290.0,0.06859237]
[1747038148275,1.57487205,104300.0,104290.0,0.06859237]
[1747038149132,1.55827205,104300.0,104290.0,0.08389237]
[1747038149360,1.57487205,104300.0,104290.0,0.06859237]
[1747038150296,1.55827205,104300.0,104290.0,0.08389237]
[1747038151363,1.67922635,104300.0,104290.0,0.06859237]
[1747038151576,1.59937205,104300.0,104290.0,0.06859237]
[1747038152669,1.56827205,104300.0,104290.0,0.08479237]
[1747038153109,1.58337205,104300.0,104290.0,0.06859237]
[1747038153314,1.58337205,104300.0,104290.0,0.06359301]
[1747038154742,1.18183205,104300.0,104290.0,0.06359301]
[1747038154938,1.31807205,104300.0,104290.0,0.07979301]
[1747038155162,0.99484362,104300.0,104290.0,0.07979301]
[1747038155386,1.31807205,104300.0,104290.0,0.07979301]
[1747038156728,1.41392635,104300.0,104290.0,0.06359301]
[1747038156943,1.33437205,104300.0,104290.0,0.06359301]
[1747038157872,1.33437205,104300.0,104290.0,0.07939301]
[1747038158125,1.28437205,104300.0,104290.0,0.06359301]
[1747038158383,1.34017205,104300.0,104290.0,0.06359301]
[1747038158661,1.3531222,104300.0,104290.0,0.06359301]
[1747038158883,1.4489765,104300.0,104290.0,0.05592034]
[1747038159798,1.3531222,104300.0,104290.0,0.05592034]
[1747038162138,1.36649364,104300.0,104290.0,0.05592034]
[1747038162351,1.31649364,104300.0,104290.0,0.05592034]
[1747038162603,1.31649364,104300.0,104290.0,0.04824767]
[1747038163033,1.36649364,104300.0,104290.0,0.04824767]
[1747038163246,1.46234794,104300.0,104290.0,0.04824767]
[1747038164129,1.4989765,104300.0,104290.0,0.04824767]
[1747038164560,1.4989765,104300.0,104290.0,0.040575]
[1747038165007,1.4989765,104300.0,104290.0,0.03290233]
[1747038165503,1.56813757,104280.0,104270.0,0.04838869]
[1747038165714,1.70062043,104280.0,104270.0,0.04843766]
[1747038166325,1.70724681,104280.0,104270.0,0.04843766]
[1747038166871,1.65561825,104280.0,104270.0,0.04843766]
[1747038167097,1.33238982,104280.0,104270.0,0.04843766]
[1747038167537,1.01316139,104280.0,104270.0,0.04843766]
[1747038167750,1.45700982,104280.0,104270.0,0.06473766]
[1747038168399,1.46000982,104280.0,104270.0,0.06473766]
[1747038168825,1.41000982,104280.0,104270.0,0.06473766]
[1747038169114,1.45996982,104280.0,104270.0,0.06473766]
[1747038169328,1.47411413,104280.0,104270.0,0.06473766]
[1747038169801,1.98428843,104280.0,104270.0,0.06473766]
[1747038170232,2.03428843,104280.0,104270.0,0.06473766]
[1747038171271,1.5152057,104280.0,104270.0,0.06473766]
[1747038171482,1.83843413,104280.0,104270.0,0.06473766]
[1747038172325,1.89591413,104280.0,104270.0,0.06473766]
[1747038174366,2.03231413,104280.0,104270.0,0.06473766]
[1747038175297,2.08231413,104280.0,104270.0,0.06473766]
[1747038175532,2.10861645,104280.0,104270.0,0.06473766]
[1747038176817,2.18995769,104280.0,104270.0,0.06473766]
[1747038177148,2.10861645,104280.0,104270.0,0.06473766]
[1747038177273,1.91525645,104280.0,104270.0,0.06473766]
[1747038177492,2.05093645,104280.0,104270.0,0.06473766]
[1747038179507,1.77885645,104280.0,104270.0,0.06473766]
[1747038179708,1.6390373,104280.0,104270.0,0.08073766]
[1747038179923,1.42514655,104280.0,104270.0,0.08073766]
[1747038180143,1.74837498,104280.0,104270.0,0.08453393]
[1747038181436,1.79263103,104280.0,104270.0,0.08453393]
[1747038181669,1.74837498,104280.0,104270.0,0.08453393]
[1747038182716,1.79837498,104280.0,104270.0,0.08453393]
[1747038183142,1.74837498,104280.0,104270.0,0.08453393]
[1747038184238,0.54141934,104260.0,104250.0,0.0016908]
[1747038184438,0.54141934,104260.0,104250.0,0.00183783]
[1747038184439,0.63727364,104260.0,104250.0,0.00183783]
[1747038184881,0.77954002,104260.0,104250.0,0.00183783]
[1747038185621,0.78054002,104260.0,104250.0,0.00183783]
[1747038186017,1.10376845,104260.0,104250.0,0.00183783]
[1747038186217,1.48322261,104260.0,104250.0,0.00183783]
[1747038186475,1.49663786,104260.0,104250.0,0.00183783]
[1747038186686,1.55986629,104260.0,104250.0,0.00183783]
[1747038187097,1.56011613,104250.0,104240.0,0.09035744]
[1747038187300,1.79805043,104250.0,104240.0,0.09035744]
[1747038187454,1.66257043,104250.0,104240.0,0.09035744]
[1747038187652,2.02950473,104250.0,104240.0,0.09035744]
[1747038187900,2.03613111,104250.0,104240.0,0.09035744]
[1747038188142,1.71290268,104250.0,104240.0,0.09035744]
[1747038188293,2.03613111,104250.0,104240.0,0.09035744]
[1747038188498,2.10067196,104250.0,104240.0,0.09035744]
[1747038189410,0.57215798,104240.0,104230.0,0.08032025]
[1747038189634,0.88671816,104230.0,104220.0,0.08428306]
[1747038189844,1.34242945,104230.0,104220.0,0.08428306]
[1747038190070,1.39905583,104230.0,104220.0,0.08428306]
[1747038190271,1.39905583,104230.0,104210.0,0.09424587]
[1747038190272,0.54149664,104220.0,104210.0,0.09424587]
[1747038190491,0.99327937,104220.0,104210.0,0.09473617]
[1747038190698,1.26431937,104220.0,104210.0,0.09473617]
[1747038190910,1.25444575,104220.0,104210.0,0.09473617]
[1747038191737,1.25544575,104220.0,104210.0,0.09873617]
[1747038191954,0.98440575,104220.0,104210.0,0.09873617]
[1747038192172,1.23920575,104220.0,104210.0,0.11453617]
[1747038192395,1.23920575,104220.0,104210.0,0.09873617]
[1747038192813,1.23920575,104220.0,104210.0,0.09973617]
[1747038193040,1.25320575,104220.0,104210.0,0.09573617]
[1747038193278,1.25420575,104220.0,104210.0,0.09473617]
[1747038193486,1.25720575,104220.0,104210.0,0.09473617]
[1747038194113,1.28445176,104220.0,104210.0,0.09473617]
[1747038194815,1.31399261,104220.0,104210.0,0.09473617]
[1747038195268,1.32855679,104220.0,104210.0,0.09473617]
[1747038196538,1.30131078,104220.0,104210.0,0.09473617]
[1747038196763,1.28631078,104220.0,104210.0,0.09473617]
[1747038196944,0.3725415,104220.0,104210.0,0.11013617]
[1747038197198,0.9035415,104220.0,104210.0,0.11013617]
[1747038197412,0.6225415,104220.0,104210.0,0.11013617]
[1747038197621,0.6225415,104220.0,104210.0,0.12533617]
[1747038197826,0.8935015,104220.0,104210.0,0.12533617]
[1747038198041,1.2335015,104220.0,104210.0,0.12533617]
[1747038198253,1.22687512,104220.0,104210.0,0.12533617]
[1747038198911,0.88687512,104220.0,104210.0,0.12533617]
[1747038199121,0.58687512,104220.0,104210.0,0.12533617]
[1747038199558,0.92687512,104220.0,104210.0,0.12533617]
[1747038199975,0.58687512,104220.0,104210.0,0.12533617]
[1747038200180,0.58287512,104220.0,104210.0,0.12533617]
[1747038200385,0.58287512,104220.0,104210.0,0.12633617]
[1747038200590,0.58387512,104220.0,104210.0,0.12633617]
[1747038202123,0.31291512,104220.0,104210.0,0.4495646]
[1747038202327,0.44859512,104220.0,104210.0,0.4495646]
[1747038202543,0.44859512,104220.0,104210.0,0.12633617]
[1747038202544,0.43403094,104220.0,104210.0,0.12633617]
[1747038205163,0.44807219,104220.0,104210.0,0.12633617]
[1747038205611,1.11130062,104220.0,104210.0,0.12633617]
[1747038205830,1.11130062,104220.0,104210.0,0.09573617]
[1747038205831,1.48584147,104220.0,104210.0,0.09573617]
[1747038206041,1.50134147,104220.0,104210.0,0.09573617]
[1747038206247,1.50790506,104220.0,104210.0,0.09573617]
[1747038206469,1.40672506,104220.0,104210.0,0.09573617]
[1747038206686,1.30429663,104220.0,104210.0,0.11153617]
[1747038206895,1.27975578,104220.0,104210.0,0.11153617]
[1747038207115,1.27319219,104220.0,104210.0,0.11153617]
[1747038209541,1.27975741,104220.0,104210.0,0.11153617]
[1747038211472,1.27975741,104220.0,104210.0,0.09573617]
[1747038211473,1.61752669,104220.0,104210.0,0.09573617]
[1747038211679,1.64382669,104220.0,104210.0,0.09573617]
[1747038211891,1.34382669,104220.0,104210.0,0.09573617]
[1747038212577,0.84151598,104210.0,104200.0,2.02108828]
[1747038212793,1.26059871,104210.0,104200.0,2.02123513]
[1747038213218,1.26716393,104210.0,104200.0,2.02123513]
[1747038214092,1.26716393,104210.0,104200.0,2.02423513]
[1747038214303,1.29170478,104210.0,104200.0,2.02423513]
[1747038214520,1.34170478,104210.0,104200.0,2.02423513]
[1747038214758,1.05830478,104210.0,104200.0,2.02523513]
[1747038214964,1.06876027,104210.0,104200.0,2.02523513]
[1747038215597,1.07376332,104210.0,104200.0,2.02523513]
[1747038216082,1.05216027,104210.0,104200.0,2.02523513]
[1747038218663,1.05716332,104210.0,104200.0,2.02523513]
[1747038218878,1.05216027,104210.0,104200.0,2.02523513]
[1747038219978,1.06736027,104210.0,104200.0,2.02523513]
[1747038220645,1.03276027,104210.0,104200.0,2.02523513]
[1747038220870,1.03276027,104210.0,104200.0,2.02123513]
[1747038221058,1.03276027,104210.0,104200.0,2.02223513]
[1747038221506,1.03376027,104210.0,104200.0,2.02223513]
[1747038221669,1.02376027,104210.0,104200.0,2.02223513]
[1747038222343,1.06565641,104210.0,104200.0,2.02223513]
[1747038222596,1.05005814,104210.0,104200.0,2.02223513]
[1747038222829,1.03465814,104210.0,104200.0,2.02223513]
[1747038223289,1.03465814,104210.0,104200.0,2.02123513]
[1747038223516,1.00836027,104210.0,104200.0,2.02123513]
[1747038223762,1.00936027,104210.0,104200.0,2.02123513]
[1747038224360,1.10521457,104210.0,104200.0,2.02123513]
[1747038224585,0.7124257,104210.0,104200.0,2.02123513]
[1747038224788,1.00936027,104210.0,104200.0,2.02123513]
[1747038225030,1.00836027,104210.0,104200.0,2.02123513]
[1747038225168,1.01036027,104210.0,104200.0,2.02123513]
[1747038225561,1.02586027,104210.0,104200.0,2.02123513]
[1747038225766,1.37095714,104210.0,104200.0,2.02123513]
[1747038227159,1.69418557,104210.0,104200.0,2.02123513]
[1747038227399,1.75166557,104210.0,104200.0,2.02123513]
[1747038227599,1.42843714,104210.0,104200.0,2.02123513]
[1747038228935,1.35545714,104210.0,104200.0,2.02123513]
[1747038230652,1.49017714,104210.0,104200.0,2.02123513]
[1747038230898,1.58603144,104210.0,104200.0,2.02123513]
[1747038231998,1.55972027,104210.0,104200.0,1.82197274]
[1747038232229,1.61720027,104210.0,104200.0,1.82197274]
[1747038233756,1.34397184,104210.0,104200.0,1.82197274]
[1747038234019,1.61720027,104210.0,104200.0,1.82197274]
[1747038234896,1.66720027,104210.0,104200.0,1.82197274]
[1747038235154,1.61720027,104210.0,104200.0,1.82197274]
[1747038236285,1.34397184,104210.0,104200.0,1.82197274]
[1747038236507,1.27877184,104210.0,104200.0,1.82197274]
[1747038236723,1.65200027,104210.0,104200.0,1.82197274]
[1747038236929,1.54452027,104210.0,104200.0,1.82197274]
[1747038238268,1.56092027,104210.0,104200.0,1.82197274]
[1747038238489,1.57632027,104210.0,104200.0,1.82197274]
[1747038238717,1.56092027,104210.0,104200.0,1.82197274]
[1747038240038,1.8994487,104210.0,104200.0,1.82197274]
[1747038240270,1.60261186,104210.0,104200.0,1.82197274]
[1747038241360,1.73697186,104210.0,104200.0,1.82197274]
[1747038243160,1.72163186,104210.0,104200.0,1.82197274]
[1747038244259,1.75523186,104210.0,104200.0,1.82197274]
[1747038244468,1.70519186,104210.0,104200.0,1.83777274]
[1747038244904,1.70519186,104210.0,104200.0,1.82197274]
[1747038245567,1.70523529,104210.0,104200.0,1.82197274]
[1747038245953,1.43200686,104210.0,104200.0,1.82197274]
[1747038246153,1.70523529,104210.0,104200.0,1.83717274]
[1747038246357,0.96752686,104210.0,104200.0,1.83717274]
[1747038246560,1.04200686,104210.0,104200.0,1.85357274]
[1747038246775,1.74200686,104210.0,104200.0,1.85357274]
[1747038247165,1.71561527,104210.0,104200.0,1.85357274]
[1747038247384,1.58113527,104210.0,104200.0,1.85357274]
[1747038247538,1.71557527,104210.0,104200.0,1.85357274]
[1747038247740,1.74199864,104210.0,104200.0,1.85357274]
[1747038248373,2.06522707,104210.0,104200.0,1.85357274]
[1747038249450,2.01522707,104210.0,104200.0,1.85357274]
[1747038250359,2.06522707,104210.0,104200.0,1.85357274]
[1747038251363,1.74199864,104210.0,104200.0,1.85357274]
[1747038251558,2.06522707,104210.0,104200.0,1.85357274]
[1747038251761,1.57078707,104210.0,104200.0,1.85357274]
[1747038251990,1.64095442,104210.0,104200.0,1.85357274]
[1747038252519,1.20659442,104210.0,104200.0,1.85357274]
[1747038252727,0.99049893,104210.0,104200.0,1.85357274]
[1747038253296,1.33049893,104210.0,104200.0,1.85357274]
[1747038253847,1.32749893,104210.0,104200.0,1.85357274]
[1747038254129,1.32849893,104210.0,104200.0,1.85457274]
[1747038256274,1.32845893,104210.0,104200.0,1.85457274]
[1747038256663,1.32841893,104210.0,104200.0,1.85457274]
[1747038257986,1.32181028,104210.0,104200.0,1.85457274]
[1747038259901,0.84753028,104210.0,104200.0,1.85457274]
[1747038260135,0.98177028,104210.0,104200.0,2.17780117]
[1747038260338,0.98177028,104210.0,104200.0,1.85457274]
[1747038261004,0.33703598,104210.0,104200.0,1.85457274]
[1747038261436,0.43289028,104210.0,104200.0,1.85457274]
[1747038262770,1.09611871,104210.0,104200.0,1.85457274]
[1747038262995,1.09611871,104210.0,104200.0,1.83817274]
[1747038263868,1.10270609,104210.0,104200.0,1.83817274]
[1747038264323,1.11920609,104210.0,104200.0,1.82297274]
[1747038264580,1.20894694,104210.0,104200.0,1.82297274]
[1747038265442,1.19374694,104210.0,104200.0,1.82297274]
[1747038265653,1.20894694,104210.0,104200.0,1.82297274]
[1747038266737,1.43374694,104210.0,104200.0,1.82297274]
[1747038266946,0.96949851,104210.0,104200.0,1.83947274]
[1747038267201,1.55136694,104210.0,104200.0,1.83947274]
[1747038267411,1.56136694,104210.0,104200.0,1.82297274]
[1747038267617,1.89759766,104210.0,104200.0,1.83947274]
[1747038267821,2.22082609,104210.0,104200.0,1.82297274]
[1747038268232,1.89759766,104210.0,104200.0,1.83947274]
[1747038268447,1.59759766,104210.0,104200.0,1.83947274]
[1747038269085,1.59755766,104210.0,104200.0,1.85487274]
[1747038269529,1.25755766,104210.0,104200.0,1.85487274]
[1747038269793,1.25755766,104210.0,104200.0,2.17810117]
[1747038270244,1.25097028,104210.0,104200.0,1.85487274]
[1747038270710,1.59097028,104210.0,104200.0,1.85487274]
[1747038274453,1.59756664,104210.0,104200.0,1.85487274]
[1747038280018,1.59756664,104210.0,104200.0,1.83947274]
[1747038281141,1.92079507,104210.0,104200.0,1.83947274]
[1747038281336,2.23739507,104210.0,104200.0,1.82297274]
[1747038283410,1.91416664,104210.0,104200.0,1.82297274]
[1747038288003,1.91416664,104210.0,104200.0,1.82237274]
[1747038289219,1.89756664,104210.0,104200.0,1.83737274]
[1747038289979,1.89756664,104210.0,104200.0,1.85377274]
[1747038291411,1.89756664,104210.0,104200.0,1.83737274]
[1747038293213,1.91316664,104210.0,104200.0,1.82237274]
[1747038293885,1.91316664,104210.0,104200.0,1.83857274]
[1747038294529,2.26733592,104210.0,104200.0,1.82237274]
[1747038296166,2.25093592,104210.0,104200.0,1.82237274]
[1747038296385,1.92770749,104210.0,104200.0,1.82237274]
[1747038296599,2.25081582,104210.0,104200.0,1.82237274]
[1747038297070,2.30829582,104210.0,104200.0,1.82237274]
[1747038297277,2.25081582,104210.0,104200.0,1.82237274]
[1747038297973,1.92758739,104210.0,104200.0,1.82237274]
[1747038298507,1.92758739,104210.0,104200.0,1.83847274]
[1747038298895,1.92758739,104210.0,104200.0,1.82237274]
[1747038300374,1.64338739,104210.0,104200.0,1.83887274]
[1747038300580,1.46292654,104210.0,104200.0,1.85427274]
[1747038300991,1.59668654,104210.0,104200.0,1.85427274]
[1747038301447,1.91991497,104210.0,104200.0,1.83887274]
[1747038301816,1.59668654,104210.0,104200.0,1.83887274]
[1747038302256,2.25105582,104210.0,104200.0,1.82237274]
[1747038303504,1.92782739,104210.0,104200.0,1.82237274]
[1747038303740,1.92782739,104210.0,104200.0,1.83807274]
[1747038303741,1.46292654,104210.0,104200.0,1.83807274]
[1747038303981,1.59664654,104210.0,104200.0,1.85447274]
[1747038304433,1.46292654,104210.0,104200.0,1.85447274]
[1747038304659,0.91264654,104210.0,104200.0,1.85447274]
[1747038304896,0.77892654,104210.0,104200.0,1.85447274]
[1747038305146,0.91260654,104210.0,104200.0,1.85447274]
[1747038305680,0.21858797,104210.0,104200.0,2.17770117]
[1747038305907,0.21858797,104210.0,104200.0,2.702465]
[1747038305908,0.00759636,104210.0,104200.0,2.702465]
[1747038306142,0.21111161,104210.0,104200.0,2.71156156]
[1747038306382,0.23030297,104210.0,104200.0,2.81701232]
[1747038306620,0.23030297,104210.0,104200.0,2.27305547]
[1747038306828,0.21111189,104210.0,104200.0,1.85397274]
[1747038307048,0.21111189,104210.0,104200.0,1.85597274]
[1747038307256,0.71696619,104210.0,104200.0,1.84017274]
[1747038307493,0.71696619,104210.0,104200.0,1.83817274]
[1747038307494,1.04019462,104210.0,104200.0,1.83817274]
[1747038307673,1.04019462,104210.0,104200.0,1.82237274]
[1747038307876,1.04119462,104210.0,104200.0,1.82937274]
[1747038308124,0.71796619,104210.0,104200.0,1.82937274]
[1747038308339,1.45475462,104210.0,104200.0,1.82237274]
[1747038308554,1.45475462,104210.0,104200.0,1.82137274]
[1747038308767,2.48489547,104210.0,104200.0,1.82137274]
[1747038308988,2.48489547,104210.0,104200.0,1.82337274]
[1747038309199,2.45329547,104210.0,104200.0,1.82337274]
[1747038309428,2.38288619,104210.0,104200.0,1.82137274]
[1747038309631,2.75235547,104210.0,104200.0,1.82537274]
[1747038310255,2.75135547,104210.0,104200.0,1.82137274]
[1747038310467,2.75335547,104210.0,104200.0,1.82137274]
[1747038310893,2.76335547,104210.0,104200.0,1.8163882]
[1747038311318,2.76535547,104210.0,104200.0,1.8163882]
[1747038311766,2.73975547,104210.0,104200.0,1.8163882]
[1747038312202,2.71011462,104210.0,104200.0,1.8163882]
[1747038312423,2.40142704,104210.0,104200.0,1.8163882]
[1747038313983,2.72465547,104210.0,104200.0,1.8163882]
[1747038314155,2.74085547,104210.0,104200.0,1.8163882]
[1747038314370,2.75635547,104210.0,104200.0,1.8163882]
[1747038316193,2.74085547,104210.0,104200.0,1.8163882]
[1747038316406,2.75705547,104210.0,104200.0,1.8163882]
[1747038317404,2.74085547,104210.0,104200.0,1.8163882]
[1747038318049,2.40142704,104210.0,104200.0,1.8163882]
[1747038318259,2.73125775,104210.0,104200.0,1.8163882]
[1747038318468,2.74755775,104210.0,104200.0,1.8163882]
[1747038321461,2.76315775,104210.0,104200.0,1.8163882]
[1747038322075,2.74755775,104210.0,104200.0,1.8163882]
[1747038322193,2.73125775,104210.0,104200.0,1.8163882]
[1747038322819,2.48009775,104210.0,104200.0,1.8163882]
[1747038323032,2.76253775,104210.0,104200.0,1.8163882]
[1747038324087,2.74733775,104210.0,104200.0,1.8163882]
[1747038324519,2.76273775,104210.0,104200.0,1.8163882]
[1747038325796,2.74733775,104210.0,104200.0,1.8163882]
[1747038326870,2.76343775,104210.0,104200.0,1.8163882]
[1747038328712,2.76339775,104210.0,104200.0,1.8163882]
[1747038329752,2.44016932,104210.0,104200.0,1.8163882]
[1747038329962,2.74729775,104210.0,104200.0,1.8163882]
[1747038331100,2.76109775,104210.0,104200.0,1.8163882]
[1747038333682,2.07709775,104210.0,104200.0,1.8163882]
[1747038334608,2.16032618,104210.0,104200.0,1.81139978]
[1747038334833,2.81863718,104210.0,104200.0,1.00371185]
[1747038335052,2.39276018,104210.0,104200.0,0.83371185]
[1747038335272,2.48861448,104210.0,104200.0,0.83073943]
[1747038335498,2.24618048,104210.0,104200.0,0.83073943]
[1747038335718,2.64101248,104210.0,104200.0,0.83073943]
[1747038335975,2.15032618,104210.0,104200.0,0.83073943]
[1747038337328,2.84792418,104210.0,104200.0,0.83073943]
[1747038337467,2.96000418,104210.0,104200.0,0.83073943]
[1747038337690,2.57800418,104210.0,104200.0,0.83073943]
[1747038338121,2.29634318,104210.0,104200.0,0.83073943]
[1747038338568,2.15032618,104210.0,104200.0,0.83073943]
[1747038338788,1.82709775,104210.0,104200.0,0.83073943]
[1747038339406,2.20909775,104210.0,104200.0,0.83073943]
[1747038339624,2.21873775,104210.0,104200.0,0.83073943]
[1747038340053,1.54862847,104210.0,104200.0,0.83073943]
[1747038340277,1.45912331,104210.0,104200.0,0.83073943]
[1747038340687,1.43166416,104210.0,104200.0,0.83073943]
[1747038341103,1.43166416,104210.0,104200.0,0.61047021]
[1747038342335,1.75489259,104210.0,104200.0,0.61047021]
[1747038343737,1.46196416,104210.0,104200.0,0.61047021]
[1747038343934,1.78519259,104210.0,104200.0,0.61047021]
[1747038344169,1.78519259,104210.0,104200.0,0.21047021]
[1747038344835,1.77519259,104210.0,104200.0,0.21047021]
[1747038345314,1.78519259,104210.0,104200.0,0.21047021]
[1747038345579,1.77519259,104210.0,104200.0,0.21047021]
[1747038345818,1.96135709,104210.0,104200.0,0.15344021]
[1747038346804,1.95935709,104210.0,104200.0,0.15344021]
[1747038347049,1.96135709,104210.0,104200.0,0.15444021]
[1747038347282,2.38043982,104210.0,104200.0,0.14318428]
[1747038347516,0.54243531,104200.0,104190.0,0.02134886]
[1747038347745,1.62928732,104200.0,104190.0,0.02134886]
[1747038347971,2.03773971,104200.0,104190.0,0.02134886]
[1747038348199,2.13359401,104200.0,104190.0,0.02134886]
[1747038348727,2.14319629,104200.0,104190.0,0.02134886]
[1747038348935,2.14619629,104200.0,104190.0,0.01466791]
[1747038349164,2.18236079,104200.0,104190.0,0.01466791]
[1747038349615,3.08913579,104200.0,104190.0,0.01466791]
[1747038349882,3.05945379,104200.0,104190.0,0.01466791]
[1747038350165,2.49996079,104200.0,104190.0,0.01466791]
[1747038350398,2.33596279,104200.0,104190.0,0.01466791]
[1747038350834,2.38596279,104200.0,104190.0,0.01466791]
[1747038351063,1.68950593,104200.0,104190.0,0.01437626]
[1747038351310,1.42711356,104200.0,104190.0,0.01437626]
[1747038351541,1.07743274,104200.0,104190.0,0.01437626]
[1747038351764,1.53398117,104200.0,104190.0,0.01437626]
[1747038352469,1.58398117,104200.0,104190.0,0.01437626]
[1747038352711,1.53398117,104200.0,104190.0,0.01437626]
[1747038352942,1.56808117,104200.0,104190.0,0.01437626]
[1747038353181,1.43476117,104200.0,104190.0,0.01437626]
[1747038353408,1.52808117,104200.0,104190.0,0.01437626]
[1747038353633,1.57808117,104200.0,104190.0,0.01437626]
[1747038354989,1.52808117,104200.0,104190.0,0.01437626]
[1747038355211,1.39476117,104200.0,104190.0,0.01437626]
[1747038355443,1.05653274,104200.0,104190.0,0.01437626]
[1747038355672,0.60999189,104200.0,104190.0,0.36790469]
[1747038355886,0.30999189,104200.0,104190.0,0.36790469]
[1747038356777,0.30699189,104200.0,104190.0,0.36690469]
[1747038356992,0.30399189,104200.0,104190.0,0.36690469]
[1747038357223,0.29838961,104200.0,104190.0,0.37290469]
[1747038357463,0.29938961,104200.0,104190.0,0.37690469]
[1747038357704,0.29838961,104200.0,104190.0,0.37090469]
[1747038358178,0.29838961,104200.0,104190.0,0.38106388]
[1747038358720,0.29938961,104200.0,104190.0,0.37490469]
[1747038358939,0.29938961,104200.0,104190.0,0.05167626]
[1747038359360,0.29938961,104200.0,104190.0,0.37490469]
[1747038360012,0.29938961,104200.0,104190.0,0.05167626]
[1747038360450,0.29938961,104200.0,104190.0,0.05359561]
[1747038361129,0.43262961,104200.0,104190.0,0.37682404]
[1747038361383,0.43262961,104200.0,104190.0,0.37490469]
[1747038362065,0.21313196,104200.0,104190.0,0.37490469]